Cogmind - Beta 16.1 @@@ ROGUE MODE // 2026.04.25 @ 08:39:18 Player: beans Result: Destroyed by G-47 Trooper with Particle Gun Performance ------------- Evolutions (2) 1000 Regions Visited (4) 800 Robots Destroyed (28) 140 Value Destroyed (776) 776 Prototype IDs (1) 20 Alien Tech Used (0) 0 Bonus (0) 0 TOTAL SCORE: 2736 Bonus ------- None Cogmind --------- Core Integrity 0/550 Matter 225/300 Energy 100/100 System Corruption 19% Temperature Cool (9) Movement Core (50) Location -8/Storage Parts ------- > --- POWER (1) -------- (None) > --- PROPULSION (2) --- (None) > --- UTILITY (6) ------ (None) > --- WEAPON (2) ------- (None) > --- INVENTORY (5) ---- Shotgun Improved Assault Rifle Peak State ------------ > --- POWER ------------ (None) > --- PROPULSION ------- Aluminum Leg Aluminum Leg > --- UTILITY ---------- Improved Terrain Scanner Terrain Scan Processor Terrain Scan Processor Terrain Scan Processor Advanced Targeting Computer Hacking Suite > --- WEAPON ----------- Improved Assault Rifle Improved Assault Rifle > --- INVENTORY -------- Shotgun Improved Assault Rifle Improved Light Cannon Improved Light Cannon Grenade Launcher [Rating: 24] Favorites ----------- Power Ion Engine Engine Ion Engine Propulsion Aluminum Leg Leg Aluminum Leg Utility Terrain Scan Processor Device Improved Terrain Scanner Processor Terrain Scan Processor Hackware Hacking Suite Weapon Improved Assault Rifle Ballistic Gun Improved Assault Rifle Ballistic Cannon Improved Light Cannon Launcher Grenade Launcher Build | -11 -10 -9 -8 -8 ------- Run | Yrd Mat Mat Mat Sto Slots Evolved 4 | . . 2 2 . Power . | . . . . . Propulsion . | . . . . . Utility 4 | . . 2 2 . Weapon . | . . . . . Parts Attached 17 | 5 . 3 6 3 Power 1 | 1 . . . . Engine 1 | 1 . . . . Core . | . . . . . Reactor . | . . . . . Propulsion 2 | 2 . . . . Treads . | . . . . . Leg 2 | 2 . . . . Wheel . | . . . . . Hover . | . . . . . Flight . | . . . . . Utility 6 | . . . 6 . Device 1 | . . . 1 . Storage . | . . . . . Processor 4 | . . . 4 . Hackware 1 | . . . 1 . Protection . | . . . . . Artifact . | . . . . . Weapon 8 | 2 . 3 . 3 Energy Gun . | . . . . . Energy Cannon . | . . . . . Ballistic Gun 5 | 2 . 2 . 1 Ballistic Cannon 2 | . . . . 2 Launcher 1 | . . 1 . . Special Weapon . | . . . . . Impact Weapon . | . . . . . Slashing Weapon . | . . . . . Piercing Weapon . | . . . . . Special Melee Weapon . | . . . . . Unidentified Prototypes 1 | . . 1 . . Parts Lost 14 | . . 1 . 13 Power 1 | . . 1 . . Propulsion 2 | . . . . 2 Utility 6 | . . . . 6 Weapon 5 | . . . . 5 Highest Loss Streak 9 | . . 1 . 9 To Critical Strikes . | . . . . . Average Backups 3 | . . 3 4 4 Power . | . . . . . Propulsion . | . . . . . Utility . | . . . . . Weapon 3 | . . 3 4 4 Tool/Special . | . . . . . Unused Backups 1 | . . . . 1 Power . | . . . . . Propulsion . | . . . . . Utility . | . . . . . Weapon 1 | . . . . 1 Tool/Special . | . . . . . Average Slot Usage (%) 64 | . 71 46 69 72 Engine 1 | . 14 2 . . Leg 16 | . 28 22 18 10 Device 4 | . . . 5 7 Processor 17 | . . . 21 30 Hackware 4 | . . . 6 7 Ballistic Gun 17 | . 28 20 18 14 Peak Build Rating 24 | 5 5 8 24 24 Average Rating 14 | 3 5 7 18 19 On Entrance 8 | . 5 5 8 24 Avg Prop Armor Cover (%) . | . . . . . Naked Turns 17 | . . . . 17 Heaviest Build 10 | 8 8 10 7 8 Greatest Support 20 | 20 20 20 20 20 Greatest Overweight (x) 2 | . . . . 2 Average Overweight (x) . | . . . . . Largest Inventory Capacity 5 | 5 5 5 5 5 Average Capacity 5 | 5 5 5 5 5 Most Carried 5 | 5 1 4 5 5 Average Carried 3 | . . 3 4 4 Final Capacity 5 | 5 5 5 5 5 Final Carried 5 | . 1 4 5 2 Class Distribution -------------------- 100% | Mutant Dominant Class ---------------- Mutant | -10/Materials Mutant | -9/Materials Mutant | -8/Materials Mutant | -8/Storage Resources | -11 -10 -9 -8 -8 ----------- Run | Yrd Mat Mat Mat Sto Matter Collected 892 | 199 . 181 48 464 Remotely . | . . . . . Salvage Created 1026 | . 29 314 48 635 Parts 54 | . 2 19 2 31 Haulers Intercepted 2 | . . 1 1 . Recyclers Shooed 1 | . . . . 1 Parts Field Recycled . | . . . . . Retrieved Matter . | . . . . . Parts Self-Destructed . | . . . . . Prevented . | . . . . . Parts Restored . | . . . . . Kills | -11 -10 -9 -8 -8 ------- Run | Yrd Mat Mat Mat Sto Combat Hostiles Destroyed 17 | . . 7 . 10 Guns 12 | . . 5 . 7 Cannons 3 | . . . . 3 AOE 2 | . . 2 . . Classes Destroyed 7 | . 1 4 . 2 Worker 3 | . . . . 3 Builder 3 | . . 1 . 2 Hauler 2 | . . 1 1 . Recycler 2 | . . . . 2 Watcher 1 | . 1 . . . Grunt 13 | . . 6 . 7 Sentry 4 | . . 1 . 3 Best Kill Streak 5 | . 1 2 1 5 Combat Bots Only 4 | . . 2 . 4 Max Kills in Single Turn 2 | . 1 2 1 1 Gunslinging 1 | . . 1 . . Exploded 1 | . . 1 . . Melee . | . . . . . Uniques/NPCs Destroyed . | . . . . . Combat | -11 -10 -9 -8 -8 -------- Run | Yrd Mat Mat Mat Sto Hostile Shots Fired 166 | . . 35 . 131 Missed 60 | . . 17 . 43 Hits 106 | . . 18 . 88 Melee 4 | . . . . 4 Projectile 102 | . . 18 . 84 Critical Strikes 7 | . . . . 7 Damage Taken 1819 | . . 336 . 1483 Core 616 | . . 55 . 561 Absorbed by Shields . | . . . . . Core Remaining (%) 95 | 100 100 86 . . Volleys Fired 98 | . 4 37 3 54 Largest 2 | . 2 2 2 2 Hottest 66 | . 40 50 46 66 Shots Fired 189 | . 8 74 6 101 Gun 153 | . 8 68 6 71 Cannon 30 | . . . . 30 Launcher 6 | . . 6 . . Special . | . . . . . Kinetic 183 | . 8 68 6 101 Thermal . | . . . . . Explosive 6 | . . 6 . . Electromagnetic . | . . . . . Robot Hit Streak 12 | . 3 10 4 12 Robot Miss Streak 3 | . 2 3 1 2 Penetration Max . | . . . . . Secondary Targets 2 | . . 1 . 1 Max Gunslinging Chain 1 | . . 1 . 1 Shots Hit Robots 122 | . 3 43 4 72 Core Hits 51 | . 2 18 1 30 Critical Kills 1 | . . . . 1 Critical Parts Destroyed 1 | . . . . 1 Critical Strikes 2 | . . . . 2 Destroy 2 | . . . . 2 Melee Attacks . | . . . . . Impact . | . . . . . Slashing . | . . . . . Piercing . | . . . . . Sneak Attacks . | . . . . . Combat Hostiles . | . . . . . Follow-up Attacks . | . . . . . Damage Inflicted 2071 | . 40 776 66 1189 Guns 1482 | . 40 552 66 824 Cannons 365 | . . . . 365 Explosions 224 | . . 224 . . Melee . | . . . . . Ramming . | . . . . . Kinetic 1847 | . 40 552 66 1189 Thermal . | . . . . . Explosive 224 | . . 224 . . Electromagnetic . | . . . . . Impact . | . . . . . Slashing . | . . . . . Piercing . | . . . . . Highest Corruption 19 | . . . . 19 Average Corruption 16 | . . . . 16 Corruption Purged . | . . . . . Corruption Blocked . | . . . . . Effects 5 | . . . . 5 Message Errors 1 | . . . . 1 Matter Fused 2 | . . . . 2 Alerts 1 | . . . . 1 Misdirections 1 | . . . . 1 Overload Shots . | . . . . . Overflow Damage 1 | . . 1 . . Projectiles . | . . . . . Explosions 1 | . . 1 . . Melee . | . . . . . Knockbacks 5 | . . . . 5 Impact . | . . . . . Kinetic 1 | . . . . 1 Secondary 4 | . . . . 4 Self-Inflicted Damage 83 | . . 83 . . Shots 5 | . . 5 . . Rammed . | . . . . . Targets Rammed . | . . . . . Kicked . | . . . . . Crushed . | . . . . . Highest Temperature 27 | . . 3 . 27 Average Temperature 11 | . . 2 . 14 Received Heat Transfer 786 | . . 120 . 666 Siege Activations . | . . . . . Martial Activations . | . . . . . Shielding Activations . | . . . . . Robots Disrupted . | . . . . . Combat Hostiles . | . . . . . Robots Corrupted . | . . . . . Combat Hostiles . | . . . . . Parts Fried . | . . . . . Impact Corruptions . | . . . . . Robots Melted . | . . . . . Combat Hostiles . | . . . . . Parts Melted . | . . . . . Heat Transferred . | . . . . . Parts Sabotaged . | . . . . . Parts Stolen . | . . . . . Parts Stripped . | . . . . . Power Chain Reactions . | . . . . . Alert | -11 -10 -9 -8 -8 ------- Run | Yrd Mat Mat Mat Sto Maximum Alert Level . | . . . . . Low Security (%) 100 | 100 100 100 100 100 Level 1 . | . . . . . Level 2 . | . . . . . Level 3 . | . . . . . Level 4 . | . . . . . Level 5 . | . . . . . High Security . | . . . . . Max Security . | . . . . . Peak Influence 90 | . 7 90 29 87 Initial 29 | . . . 29 . Average 25 | . . 37 8 28 Influence Increases 613 | . 7 230 7 369 Destroy 0b10 Robot/C 340 | . . 140 . 200 Destroy 0b10 Robot/NC 55 | . 5 10 5 35 Destroy Leader 96 | . 2 42 2 50 Successful Hack 7 | . . . . 7 Destroy Structure 25 | . . 23 . 2 Partial Spotted 15 | . . . . 15 Lose Combat Pursuer 75 | . . 15 . 60 Influence Decreases 583 | . 7 160 77 339 Entered New Map 41 | . . . 41 . Time Decay 362 | . 7 150 36 169 Lost Part 140 | . . 10 . 130 Lost Ally 40 | . . . . 40 Squads Dispatched 7 | . . 2 . 5 Investigation 1 | . . . . 1 Extermination . | . . . . . Reinforcement 3 | . . 2 . 1 Assault . | . . . . . Garrison 3 | . . . . 3 Intercept . | . . . . . Searches Triggered . | . . . . . Construction Impeded . | . . . . . Haulers Reinforced . | . . . . . Active Scanning Responses . | . . . . . Cargo Convoy Interrupts . | . . . . . Stealth | -11 -10 -9 -8 -8 --------- Run | Yrd Mat Mat Mat Sto Distress Signals 3 | . . 2 . 1 Communications Jammed . | . . . . . Distress Signals . | . . . . . Times Spotted 38 | . 2 10 . 26 Peak Tracking Total 10 | . 2 3 . 10 Tactical Retreats 5 | . . 1 . 4 Traps | -11 -10 -9 -8 -8 ------- Run | Yrd Mat Mat Mat Sto Traps Triggered 2 | . . 1 . 1 Indirectly . | . . . . . Trap Hack Attempts . | . . . . . Triggered . | . . . . . Disarmed . | . . . . . Reprogrammed . | . . . . . Reused . | . . . . . Traps Extracted . | . . . . . Installed . | . . . . . Triggered . | . . . . . Machines | -11 -10 -9 -8 -8 ---------- Run | Yrd Mat Mat Mat Sto Machines Disabled . | . . . . . Max in Single Turn . | . . . . . Machines Repaired . | . . . . . Machines Dismantled . | . . . . . Machines Sabotaged . | . . . . . Overloaded Fab Kills . | . . . . . Hacking | -11 -10 -9 -8 -8 --------- Run | Yrd Mat Mat Mat Sto Machines Accessed 2 | . . . . 2 Terminals 1 | . . . . 1 Fabricators . | . . . . . Repair Stations . | . . . . . Recycling Units . | . . . . . Scanalyzers . | . . . . . Garrison Access 1 | . . . . 1 Total Hacks 2 | . . . . 2 Successful 2 | . . . . 2 Failed . | . . . . . Catastrophic . | . . . . . Database Lockouts . | . . . . . Manual 1 | . . . . 1 Terminals 1 | . . . . 1 Fabricators . | . . . . . Repair Stations . | . . . . . Recycling Units . | . . . . . Scanalyzers . | . . . . . Garrison Access 1 | . . . . 1 Terminal Hacks 1 | . . . . 1 Open Door 1 | . . . . 1 Fabricator Hacks . | . . . . . Repair Station Hacks . | . . . . . Recycling Unit Hacks . | . . . . . Scanalyzer . | . . . . . Garrison Access Hacks . | . . . . . Unauthorized Hacks 1 | . . . . 1 Terminals . | . . . . . Fabricators . | . . . . . Repair Stations . | . . . . . Recycling Units . | . . . . . Scanalyzers . | . . . . . Garrison Access 1 | . . . . 1 Reprogram 1 | . . . . 1 Data Cores Recovered . | . . . . . Used . | . . . . . Hacking Detections 1 | . . . . 1 Full Trace Events . | . . . . . Feedback Events . | . . . . . Feedback Blocked . | . . . . . Robot Schematics Acquired . | . . . . . Robots Built . | . . . . . Authchips . | . . . . . Time . | . . . . . Total Robot Build Rating . | . . . . . Part Schematics Acquired . | . . . . . Parts Built . | . . . . . Authchips . | . . . . . Time . | . . . . . Total Part Build Rating . | . . . . . Part Studies Acquired . | . . . . . Parts Repaired . | . . . . . Time . | . . . . . Parts Recycled . | . . . . . Recycled Matter . | . . . . . Retrieved Matter . | . . . . . Retrieved Components . | . . . . . Parts Scanalyzed . | . . . . . Part Schematics Acquired . | . . . . . Parts Damaged . | . . . . . Bothacking | -11 -10 -9 -8 -8 ------------ Run | Yrd Mat Mat Mat Sto Used RIF Installer . | . . . . . Robots Hacked . | . . . . . Non-combat . | . . . . . Combat . | . . . . . Robot Hacks Applied . | . . . . . Relay Couplers Released . | . . . . . Fabnet Peak Effective % . | . . . . . Robots Rewired . | . . . . . Allies Hacked . | . . . . . Hacks Repelled . | . . . . . Allies | -11 -10 -9 -8 -8 -------- Run | Yrd Mat Mat Mat Sto Total Allies 2 | . . . . 2 Largest Group 2 | . . . . 2 Highest-Rated Group 28 | . . . . 28 Highest-Rated Ally 18 | . . . . 18 Total Orders . | . . . . . Ally Attacks 2 | . . . . 2 Total Damage . | . . . . . Kills . | . . . . . Allies Corrupted . | . . . . . Allies Melted 1 | . . . . 1 Intel | -11 -10 -9 -8 -8 ------- Run | Yrd Mat Mat Mat Sto Active Infowar (turns) 551 | . . . 91 460 Terrain 551 | . . . 91 460 Robot Analysis Total . | . . . . . Derelict Logs Recovered . | . . . . . Drone Launches . | . . . . . Drone Recoveries . | . . . . . Exploration | -11 -10 -9 -8 -8 ------------- Run | Yrd Mat Mat Mat Sto Turns Passed 1130 | 47 83 320 142 538 Spaces Moved 665 | 41 60 165 94 305 Core 145 | 17 . . . 128 Treads . | . . . . . Legs 520 | 24 60 165 94 177 Wheels . | . . . . . Hover . | . . . . . Flight . | . . . . . Fastest Speed 50 | 50 120 120 120 50 Average Speed 105 | 90 120 120 120 91 Slowest Speed 150 | 120 120 120 120 150 Overloaded Moves . | . . . . . Propulsion Burnouts . | . . . . . Robots Hopped . | . . . . . Potential Cave-ins . | . . . . . Cave-ins Triggered . | . . . . . Exploration Rate (%) 18 | 3 16 18 11 42 Regions Visited 4 Branch Regions 1 Pre-discovered Areas . | . . . . . Known Exits Taken . | . . . . . Unknown Exits Taken 4 | 1 1 1 1 . Scrap Searched . | . . . . . Spaces Dug . | . . . . . Terrain Destroyed 32 | . . 32 . . Melee . | . . . . . Projectile . | . . . . . AOE 32 | . . 32 . . Terrain Rammed . | . . . . . Walls Destroyed . | . . . . . Machines Disabled . | . . . . . Actions | -11 -10 -9 -8 -8 --------- Run | Yrd Mat Mat Mat Sto Total 903 | 50 64 213 114 462 Wait 109 | . . 2 11 96 Move 661 | 40 59 164 93 305 Hop . | . . . . . Pick Up 12 | 5 1 5 1 . Fast Attach 6 | . . . 6 . Attach 9 | 5 . . . 4 Detach 1 | . . . . 1 Swap 5 | . . 3 . 2 Drop 2 | . . 2 . . Fire 98 | . 4 37 3 54 Melee . | . . . . . Ram . | . . . . . Kick . | . . . . . Crush . | . . . . . Escape Stasis . | . . . . . Rewire . | . . . . . Trap . | . . . . . Miscellaneous . | . . . . . Route ------- -11/Scrapyard -10/Materials -9/Materials (discovered 2 exits: [*Mat] / [*Min]) -8/Materials -8/Storage (discovered 1 exit: [*Fac]) History --------- Turn | Location | Event 22 | -11/Scrapyard | Discovered new exit (range 12) 48 | -11/Scrapyard | Entered Materials 102 | -10/Materials | Discovered new exit (range 13) 131 | -10/Materials | Entered another Materials area 131 | -9/Materials | Evolved 2 slots: Utility x2 286 | -9/Materials | Discovered new exit (range 8) 316 | -9/Materials | Build established: Mutant 440 | -9/Materials | Discovered new exit (range 8) 451 | -9/Materials | Entered another Materials area 451 | -8/Materials | Evolved 2 slots: Utility x2 559 | -8/Materials | Discovered new exit (range 13) 593 | -8/Materials | Entered Storage 799 | -8/Storage | Garrison activated, responded to threat 1051 | -8/Storage | System corruption reached 10% 1065 | -8/Storage | Core integrity fell below 50% 1076 | -8/Storage | Discovered new exit (range 9) 1084 | -8/Storage | Lost 9 parts (1n5u3w) 1107 | -8/Storage | Core integrity fell below 20% 1131 | -8/Storage | Destroyed by G-47 Trooper with Particle Gun Last Messages --------------- 5AX1ECW0MSA=W1OFZDFPT|D Penetrated by Slug. Acquired 62 matter. Acquired 38 matter. R-06 Scavenger collects Weight Redist. System. Acquired 45 matter. R-06 Scavenger collects Field Recycling Unit. ALERT: Hostiles spotted, dispatching reinforcements to Terminal S012. EXIT=FOUND System corrupted: IFF burst signal emitted. Penetrated by Slug. Imp. Assault Rifle destroyed. Critical hit (Burn: +37). Penetrated by Slug. Terrain Scan Processor destroyed. System corrupted by crushing effect (+3). R-06 Scavenger destroyed. K-01 Serf collects debris. System corrupted: Matter fused (-9). Map ----- +----------------------------------------------------+ | ???????????????????????????????????????????????? | | ???????????????????????????????????????????????? | | ???????????????????????????????????????????????? | | ???????????????????????????????????????????????? | | ???????????????????????????????????????????????? | | ???????????????????????????????????????????????? | | ???????????????????????????????????????????????? | | ???????????????????????????????????????????????? | | ???????????????????????????????????????????????? | | ???????????????????????????????????????????????? | | ???????????????????????????????????????????????? | | ???????????????????????????????????????????????? | | ???????????????????????????????????????????????? | | ???????????????????????????????????????????????? | | ???????????????????????????????????????????????? | | ???????????????????????????????????????????????? | | ???????????????????????????????????????????????? | | ???????????????????????????????????????????????? | | ???????????????????????????????????????????????? | | ???????????????????????????????????????????????? | | ??????????????????????????????????????????????? | | #####???#?##?##??# ??????????????????????????? | | ?############ ??????????????????????????? | | ? ? ? ? ##????????????????????????? | | ########### ###########???????????????? | | #########?# ## @ #???????????????? | | ################## ## """"" #???????????????? | | # """"" ###### ## " ??" #???????????????? | | + ""T"" ##### ## """"" #???????????????? | | ## ##?#?# ##g"""?" #???????????????? | | ## """ """ ###### ## "? " #???????????????? | | ## """ """ ###### ## """"" #???????????????? | | ## """ """ ###### ## #???????????????? | | ## ###### =## #???????????????? | | #######+###########%!###+##+#########??########? | | ! !% %% #? # | | =%!%% ! #? #? | | %! %= ! ! # % #? | | #######/###################+##### # ?? | | ### *[%= =############# ##??# + """ ""???? | | ### %=*% !%"" #########T ##??# # """ ""???? | | ### = G"##########" "##??# # """ ""???? | | ### """ """%"" ##########! ????# #? ???? | | ### """ """ #############! #???# #?###"T"???? | | ### """ """ #############! ????# #?????""???? | | ### #############! ?????# #?#########? | | ### ##########?####?????# #? #? | | ###########################?????#!* # ?? | | #######################?????????#=%!# """" ??? | | #####################?#?????????# ! + """" ??? | +----------------------------------------------------+ Best States ------------- Heat Dissipation 31 Energy Generation 10 Energy Capacity 250 Matter Stores 262 Matter Capacity 300 Sight Range 16 Terrain Scan Range 16 Terrain Scan Density 235 Evasion (%) 55 Targeting Accuracy 8 Offensive Hacking 10 Item Schematics ----------------- None Robot Schematics ------------------ None Fabricated ------------ Nothing Repaired ---------- Nothing Studied --------- None Alien Tech Used ----------------- None Achievements -------------- None Challenges ------------ None Game ------ Seed RegenerativeGaussCloak Manual? 0 Play Time 00:10:18 Cumulative 276.9 hours Start 2026.04.25 @ 08:32:32 End 2026.04.25 @ 08:39:18 Sessions 1 Manual Loads 0 Difficulty Rogue Special Mode None Game No. 732 Rogue 730 Adventurer 2 Explorer 0 Win Type - Total 0 Types 0/0/0/0/0/0/0/0/0/0 Lore% 68 Gallery% 64 Achievement% 45 Wizard Run 0 Options --------- Layout 2 ASCII 0 Keyboard 0 Movement Mouse Keybinds 0 Fullscreen 1 Font 24/Smallcaps Map View 50x44 Zoom Use 0% Tactical HUD 0 Map Filters NONE Filters NONE Steam 1 RUN: 40add599-cb64-4538-bf0d-28ade277a6b7